bitfinex/quotes_ETHUSD_20260125
["timestamp","ask_amount","ask_price","bid_price","bid_amount"]
[1769373228583,10.70764332,2801.1,2799.9,0.002]
[1769373229582,11.60017319,2801.1,2799.9,0.002]
[1769373230186,11.60017319,2801.1,2799.9,10.86802382]
[1769373230187,0.128,2801.1,2799.9,10.86802382]
[1769373230388,0.128,2801.1,2800.0,0.08568368]
[1769373230578,0.128,2801.1,2800.0,10.9517075]
[1769373231787,1.02050792,2801.1,2800.0,10.86602382]
[1769373232169,0.128,2801.1,2800.0,10.86602382]
[1769373233485,1.02051397,2801.1,2799.9,0.002]
[1769373233694,1.23481573,2801.0,2799.9,0.002]
[1769373234885,10.57964332,2800.9,2799.9,0.002]
[1769373235085,10.57964332,2800.7,2799.6,0.002]
[1769373235677,10.57964332,2800.4,2799.6,0.002]
[1769373235878,1.05796433,2800.3,2799.6,0.002]
[1769373236687,0.3615703,2800.2,2799.1,1e-08]
[1769373236891,10.57964332,2799.8,2798.8,0.002]
[1769373237077,10.57964332,2799.6,2798.0,0.08768368]
[1769373237388,10.57964332,2799.2,2798.4,0.002]
[1769373237560,11.60081945,2799.0,2797.7,11.69870848]
[1769373237757,11.60081945,2799.0,2797.7,10.95070848]
[1769373237961,11.60081945,2799.0,2797.3,10.86602382]
[1769373238260,10.57964332,2798.8,2797.0,0.08768368]
[1769373238462,10.57964332,2798.4,2797.0,0.002]
[1769373238679,10.70764332,2798.2,2797.0,0.002]
[1769373238904,10.57964332,2798.0,2796.2,0.08568368]
[1769373239193,0.128,2798.2,2797.0,0.08568368]
[1769373239396,0.128,2798.2,2796.5,0.08568368]
[1769373239397,10.57964332,2798.0,2796.5,0.08568368]
[1769373239575,11.4731706,2797.9,2796.5,0.08568368]
[1769373239775,1.50472798,2797.8,2796.5,0.08568368]
[1769373240094,10.70764332,2797.7,2796.1,0.08568368]
[1769373240257,10.70764332,2797.7,2796.5,0.08568368]
[1769373240461,0.876,2797.7,2796.5,0.08568368]
[1769373240669,0.128,2797.7,2796.3,10.9517075]
[1769373240872,11.45564332,2797.7,2796.1,0.08568368]
[1769373241279,11.45564332,2797.7,2796.3,0.08568368]
[1769373241469,0.89352728,2797.9,2796.7,0.08568368]
[1769373241663,0.89323017,2798.9,2798.0,0.08568368]
[1769373241986,1.44690237,2798.9,2797.4,10.86602382]
[1769373242158,10.70764332,2798.8,2797.3,0.08568368]
[1769373242366,0.748,2798.7,2797.3,0.08568368]
[1769373242674,0.748,2798.7,2797.1,0.08568368]
[1769373242888,10.57964332,2798.6,2796.7,0.08568368]
[1769373243090,11.71240765,2798.5,2796.7,0.08568368]
[1769373243306,10.62232335,2798.4,2796.7,0.08568368]
[1769373243598,0.89339956,2798.3,2796.7,0.08568368]
[1769373243798,0.128,2798.2,2796.7,0.08568368]
[1769373244798,10.62232335,2798.2,2796.6,10.86602382]
[1769373245097,0.128,2798.0,2796.5,0.08568368]
[1769373245291,0.128,2798.0,2796.3,0.08568368]
[1769373245491,10.49432335,2797.7,2793.8,0.08568368]
[1769373245691,10.49432335,2795.3,2792.3,10.85972828]
[1769373245890,10.49432335,2795.3,2792.5,10.85972828]
[1769373245891,0.18640377,2794.6,2792.5,10.85972828]
[1769373246092,0.18640377,2794.6,2792.4,1.08597283]
[1769373246093,0.18640377,2794.6,2792.7,10.85972828]
[1769373246272,0.18640377,2794.6,2792.4,4.66711305]
[1769373246273,0.748,2794.5,2793.0,10.85972828]
[1769373246472,0.748,2794.5,2793.1,1.8025565]
[1769373246678,0.748,2794.5,2792.9,0.08568368]
[1769373246874,0.748,2794.5,2792.6,0.08568368]
[1769373247086,10.49432335,2794.3,2792.7,0.08568368]
[1769373247284,0.748,2794.2,2792.7,0.08568368]
[1769373247703,0.89474249,2794.1,2792.9,0.08568368]
[1769373247906,2.46633006,2794.1,2792.9,0.07959799]
[1769373248117,2.46633006,2794.1,2792.7,0.08568368]
[1769373248473,2.46633006,2794.1,2792.4,0.08568368]
[1769373248706,1.57158757,2794.1,2793.2,0.08568368]
[1769373248875,0.89461442,2794.5,2792.8,0.08568368]
[1769373249077,0.89461442,2794.5,2793.2,0.08568368]
[1769373249280,0.89461442,2794.5,2792.6,0.08568368]
[1769373249281,10.49432335,2793.5,2791.0,1.00778131]
[1769373249511,10.49432335,2792.2,2791.0,1.00778131]
[1769373249688,0.128,2792.3,2790.6,1.47686713]
[1769373249689,40.49432335,2791.9,2790.6,1.47686713]
[1769373249911,40.49432335,2791.9,2788.6,0.175]
[1769373249912,10.62232335,2791.2,2788.6,0.175]
[1769373250095,6.35,2791.1,2789.0,0.08568368]
[1769373250308,10.62232335,2791.2,2789.2,0.07885587]
[1769373250477,30.0,2791.7,2789.4,0.07885587]
[1769373250679,10.49432335,2791.2,2789.3,0.07885587]
[1769373250921,10.128,2791.7,2789.7,0.07885587]
[1769373251106,0.128,2791.8,2789.8,0.97494873]
[1769373251293,30.0,2791.7,2790.1,0.97487194]
[1769373251501,1.06223234,2792.1,2790.5,0.07885587]
[1769373251800,10.128,2792.5,2790.8,0.97464919]
[1769373252118,20.301,2792.4,2790.8,0.89579796]
[1769373252415,0.70278399,2792.9,2791.3,0.07885587]
[1769373252591,8.75702328,2793.7,2791.5,0.07885587]
[1769373252592,0.89493466,2793.5,2791.5,0.07885587]
[1769373252798,30.0,2793.3,2791.3,0.07885587]
[1769373252992,9.454,2793.3,2791.5,0.07885587]
[1769373253188,30.0,2793.3,2791.5,0.07885587]
[1769373253384,0.52235481,2793.4,2791.9,0.07885587]
[1769373253604,11.38919669,2793.7,2791.9,0.07885587]
[1769373253791,30.0,2793.6,2791.7,0.07885587]
[1769373253996,10.49432335,2793.7,2791.9,0.97429741]
[1769373254196,0.128,2793.6,2791.9,0.97429741]
[1769373254411,0.128,2793.6,2791.9,0.07885587]
[1769373254604,1.15171944,2793.5,2791.9,0.45283167]
[1769373254804,1.15171944,2793.5,2791.9,0.89544257]
[1769373255008,1.15171944,2793.5,2792.0,0.07885587]
[1769373255210,0.051,2794.3,2792.2,0.07885587]
[1769373255211,30.0,2794.1,2792.2,0.07885587]
[1769373255395,0.128,2794.0,2791.9,0.97429844]
[1769373255596,30.0,2793.7,2791.9,0.8954452]
[1769373255796,0.2335703,2793.6,2791.8,0.07885587]
[1769373255998,0.2335703,2793.6,2792.2,0.07885587]
[1769373256197,0.178,2794.1,2792.2,0.07885587]
[1769373256198,0.128,2794.1,2792.4,0.07885587]
[1769373256419,10.001,2794.3,2792.6,0.07885587]
[1769373256593,10.001,2794.3,2791.6,0.89551169]
[1769373256594,12.31473597,2794.2,2791.6,0.89551169]
[1769373256795,12.31473597,2794.2,2790.8,0.89578011]
[1769373256796,0.2335703,2792.5,2790.8,0.89578011]
[1769373256993,0.2335703,2792.5,2790.7,0.97466921]
[1769373257193,0.2335703,2792.5,2790.7,3.66217807]
[1769373257490,10.0,2792.9,2791.0,3.58283575]
[1769373257491,2.34485703,2792.4,2791.0,3.58283575]
[1769373257724,1.12869808,2792.9,2791.3,0.9744699]
[1769373257895,1.12869808,2792.9,2791.3,0.07885587]
[1769373258098,1.12869841,2792.9,2791.3,0.97447608]
[1769373258317,0.2335703,2792.6,2790.8,0.89577864]
[1769373258619,0.2335703,2792.2,2789.9,3.58429394]
[1769373258823,0.2335703,2792.0,2790.3,0.07885587]
[1769373259000,0.3615703,2792.4,2790.7,0.97468651]
[1769373259313,0.128,2792.2,2790.7,0.07885587]
[1769373259513,0.2335703,2792.1,2790.3,0.89593927]
[1769373259724,0.2335703,2792.1,2790.3,0.89593888]
[1769373259910,0.2335703,2792.1,2790.8,0.07885587]
[1769373259911,0.39430088,2792.0,2790.8,0.07885587]
[1769373260114,1.12895964,2792.1,2790.4,0.45587659]
[1769373260419,1.12895964,2792.1,2790.2,0.89598367]
[1769373260420,30.0,2792.0,2790.2,0.89598367]
[1769373260627,30.0,2792.0,2790.3,0.07885587]
[1769373260830,0.128,2791.3,2789.5,0.97505226]
[1769373260994,0.2335703,2791.2,2789.4,0.07885587]
[1769373261323,0.128,2791.1,2789.5,0.07885587]
[1769373261544,1.2463703,2791.0,2789.5,0.07885587]
[1769373261712,0.2335703,2791.0,2790.1,0.002]
[1769373261911,0.2335703,2791.7,2790.2,0.07885587]
[1769373262122,3.58204678,2791.8,2790.1,0.002]
[1769373262123,0.128,2791.4,2790.1,0.002]
[1769373263311,30.128,2792.3,2790.4,0.07885587]
[1769373263510,0.128,2792.1,2790.4,0.07885587]
[1769373263828,0.2335703,2791.8,2790.4,0.07885587]
[1769373264141,1.12905415,2791.8,2790.4,0.07885587]
[1769373264438,0.128,2791.7,2790.1,0.002]
[1769373264806,3.58191847,2791.9,2790.1,0.002]
[1769373264807,10.89545707,2791.9,2790.4,0.07885587]
[1769373265007,1.08954571,2791.8,2790.6,0.07885587]
[1769373265313,0.89545343,2791.9,2790.6,0.07885587]
[1769373265519,0.89545343,2791.9,2790.4,0.07885587]
[1769373265812,0.128,2792.1,2790.4,0.97478378]
[1769373266322,0.89535133,2792.2,2790.6,0.07885587]
[1769373266542,0.89535133,2792.2,2790.4,0.97478378]
[1769373266719,0.44767567,2792.1,2790.6,0.07885587]
[1769373267030,0.44767567,2792.1,2790.5,0.07885587]
[1769373267195,0.44767567,2792.1,2790.3,0.89593785]
[1769373267397,0.44767567,2792.1,2790.4,0.97477923]
[1769373267699,0.44767567,2792.1,2790.6,0.07885587]
[1769373268096,0.89541547,2792.0,2790.2,0.97483177]
[1769373268419,0.49246506,2791.9,2790.3,0.45609118]
[1769373268929,0.49246506,2791.9,2790.2,0.89598924]
[1769373268930,0.49246506,2791.9,2790.1,0.002]
[1769373269128,10.519603,2791.8,2790.1,0.002]
[1769373269424,0.128,2791.5,2790.1,0.002]
[1769373270006,0.128,2791.5,2787.4,6.4663856]
[1769373270007,10.2860327,2789.7,2787.4,6.4663856]
[1769373270210,0.07885587,2789.8,2787.4,0.96801157]
[1769373270212,0.07885587,2788.6,2787.4,0.96801157]
[1769373270398,10.55158857,2788.8,2787.2,1e-08]
[1769373270399,10.60158857,2788.8,2787.2,1e-08]
[1769373270701,1.06015886,2788.7,2787.2,1e-08]
[1769373270895,0.2335703,2788.7,2787.2,1e-08]
[1769373271297,0.1867,2788.8,2787.6,0.07885587]
[1769373271497,15.01,2790.3,2788.4,0.07885587]
[1769373271724,15.01,2790.3,2788.6,0.07885587]
[1769373271725,10.2335703,2790.3,2788.6,0.07885587]
[1769373271923,0.2335703,2790.1,2787.8,0.07885587]
[1769373272151,2.92075703,2790.0,2788.4,0.07885587]
[1769373272435,3.66160133,2791.2,2789.2,0.07885587]
[1769373272436,20.561,2790.9,2789.2,0.07885587]
[1769373272741,20.561,2790.9,2789.0,0.07885587]
[1769373272742,5.07,2790.9,2789.0,0.07885587]
[1769373273027,30.0,2790.9,2788.7,0.07885587]
[1769373273199,3.00788559,2790.8,2790.3,0.002]
[1769373273394,4.893,2791.0,2790.3,0.002]
[1769373273594,0.75,2791.2,2790.3,0.002]
[1769373273829,1.0647603,2791.4,2790.3,0.002]
[1769373274126,0.001,2791.6,2790.3,0.002]
[1769373274537,30.07885587,2791.5,2788.7,14.080763]
[1769373274707,0.128,2791.3,2789.4,0.89623618]
[1769373274897,0.128,2791.3,2789.1,0.07885587]
[1769373274898,0.2335703,2791.0,2789.3,0.89626559]
[1769373275098,0.128,2791.1,2789.5,0.89618807]
[1769373275408,11.19035931,2791.6,2789.7,0.89615326]
[1769373275598,1.11903593,2791.5,2789.8,0.53481827]
[1769373275924,1.11903593,2791.5,2789.8,0.4559624]
[1769373276132,0.001,2791.6,2789.8,1.3520639]
[1769373276829,0.2345703,2791.6,2789.8,1.3520639]
[1769373277003,0.2345703,2791.6,2789.8,0.8961015]
[1769373277204,0.001,2791.6,2789.8,0.97495737]
[1769373277427,0.001,2791.6,2789.8,0.8961015]
[1769373278429,0.07885587,2791.2,2788.9,0.002]
[1769373278627,30.0,2791.0,2789.2,0.89630165]
[1769373278804,11.42292961,2791.1,2789.3,1.34444692]
[1769373279004,30.0,2791.0,2789.3,0.44816788]
[1769373279225,0.2335703,2790.9,2789.1,0.89632531]
[1769373279514,0.2335703,2790.8,2789.1,0.89632099]
[1769373279724,0.2335703,2790.9,2789.1,0.89632099]
[1769373279930,10.0,2790.9,2789.0,0.07885587]
[1769373280131,11.18935931,2791.1,2789.0,0.07885587]
[1769373280132,11.9755703,2791.0,2789.2,0.89629297]
[1769373280355,0.89580048,2790.8,2789.2,1.35234517]
[1769373280837,0.89580048,2790.8,2789.2,0.4560522]
[1769373281138,0.07885587,2790.5,2788.9,0.002]
[1769373281313,10.07885587,2790.3,2788.9,0.002]
[1769373281511,0.07885587,2790.3,2788.9,0.002]
[1769373281703,0.20685587,2790.3,2788.9,0.002]
[1769373282301,0.89598096,2790.3,2788.9,0.002]
[1769373282534,0.2335703,2790.4,2788.9,0.002]
[1769373282535,30.0,2790.4,2788.9,0.002]
[1769373282720,11.1347071,2791.2,2789.0,0.07885587]
[1769373282921,1.64676062,2791.0,2789.0,0.07885587]
[1769373283126,30.0,2790.9,2788.6,0.07885587]
[1769373283329,1.64576062,2791.0,2788.8,0.07885587]
[1769373283808,0.2335703,2790.9,2788.8,0.07885587]
[1769373284521,0.2335703,2790.9,2788.9,0.89641077]
[1769373284734,0.2335703,2790.9,2789.0,0.45609097]
[1769373284935,11.18935931,2791.3,2789.1,0.07885587]
[1769373285142,11.18935931,2791.3,2789.3,0.07885587]
[1769373285434,11.18935931,2791.3,2789.0,0.45609097]
[1769373285435,30.0,2791.0,2789.0,0.45609097]
[1769373285616,11.42292961,2790.9,2789.0,0.45609097]
[1769373285820,1.14229296,2790.8,2789.0,0.45809097]
[1769373286424,1.14229296,2790.8,2789.1,0.89634649]
[1769373286627,1.14229296,2790.8,2789.1,0.97520236]
[1769373286838,1.14229296,2790.8,2789.1,0.89634649]
[1769373287520,1.14229296,2790.8,2789.2,0.03585257]
[1769373287722,1.23316523,2790.7,2789.2,0.03585257]
[1769373288237,1.23316523,2790.7,2789.1,0.89634649]
[1769373288409,0.89586468,2790.6,2789.0,0.45809097]
[1769373288617,15.40378548,2790.3,2789.0,0.002]
[1769373288831,11.42292961,2790.1,2789.0,0.002]
[1769373289137,0.128,2790.0,2788.3,0.89658492]
[1769373289446,0.128,2790.0,2788.1,3.58663088]
[1769373289447,11.42292961,2789.7,2787.9,0.89671849]
[1769373289653,11.42292961,2789.7,2788.0,0.89667649]
[1769373289654,1.52757855,2789.6,2788.0,0.89667649]
[1769373289813,1.52757855,2789.6,2788.1,0.89665405]
[1769373290014,1.52757855,2789.6,2788.2,0.89661468]
[1769373290334,0.2335703,2790.0,2787.9,0.07885587]
[1769373290625,0.12885587,2790.4,2787.9,0.07885587]
[1769373290626,0.128,2790.4,2788.5,0.07885587]
[1769373290829,0.128,2790.4,2788.3,0.07885587]
[1769373291009,0.128,2790.4,2788.5,0.07885587]
[1769373291217,13.17352454,2790.7,2788.7,0.07885587]
[1769373291418,1.31735245,2790.6,2788.9,0.07885587]
[1769373292134,1.31735245,2790.6,2788.7,0.07885587]
[1769373292330,1.31735245,2790.6,2788.9,0.07885587]
[1769373292511,1.31735245,2790.6,2789.0,0.89637863]
[1769373292717,0.751,2790.7,2789.0,0.89637863]
[1769373292920,0.2335703,2790.6,2789.0,0.89637863]
[1769373294529,0.2335703,2790.6,2788.7,3.66472985]
[1769373294530,0.2335703,2790.6,2788.8,0.89644291]
[1769373294932,5.10387362,2790.5,2788.8,0.89644291]
[1769373295131,0.2335703,2790.4,2788.8,0.89644291]
[1769373295332,0.53374439,2790.3,2788.9,0.44823169]
[1769373296358,0.53374439,2790.3,2788.9,0.52708756]
[1769373296927,0.53374439,2790.3,2789.0,0.89637863]
[1769373297527,0.751,2790.7,2789.0,0.89637863]
[1769373297952,11.18935931,2791.1,2789.0,11.31245493]
[1769373298153,11.18935931,2791.1,2789.1,0.07885587]
[1769373298354,0.001,2790.4,2789.1,0.07885587]
[1769373299433,0.001,2790.4,2789.3,10.49493217]
[1769373299635,0.001,2790.4,2789.4,0.73689972]
[1769373300037,0.001,2790.4,2789.3,0.07885587]
[1769373300241,0.001,2790.4,2789.5,0.07885587]
[1769373300656,0.001,2790.4,2789.3,0.07885587]
[1769373301158,0.129,2791.4,2789.3,0.07885587]
[1769373301159,0.129,2791.4,2789.9,0.07885587]
[1769373301160,0.001,2791.4,2789.9,0.07885587]
[1769373301360,0.001,2791.4,2790.0,0.07885587]
[1769373301561,0.001,2791.4,2790.1,0.89602523]
[1769373301856,0.001,2791.4,2790.2,0.44801262]
[1769373302423,0.001,2791.4,2789.7,10.49493217]
[1769373302424,0.001,2791.4,2789.3,0.07885587]
[1769373302650,0.001,2791.4,2790.0,0.89605263]
[1769373302952,0.001,2791.4,2790.0,0.89605664]
[1769373303157,0.001,2791.4,2790.0,0.89604001]
[1769373303358,0.001,2791.4,2789.5,0.07885587]
[1769373303556,5.25420406,2791.3,2789.6,0.89616239]
[1769373303731,0.52552041,2791.2,2789.4,0.07885587]
[1769373304053,0.52552041,2791.2,2789.3,11.04644147]
[1769373304054,5.25420406,2790.7,2789.3,0.8962743]
[1769373304242,0.128,2790.8,2789.3,0.89626497]
[1769373304424,0.128,2790.8,2789.1,3.58527861]
[1769373304631,10.77078877,2790.8,2789.2,0.89629621]
[1769373304844,1.07707888,2790.7,2789.3,1.34444874]
[1769373305059,1.07707888,2790.7,2789.4,0.89622932]
[1769373305260,1.07707888,2790.7,2789.6,0.89618286]
[1769373305463,1.07707888,2790.7,2789.4,0.89622958]
[1769373305844,1.07707888,2790.7,2789.0,0.07885587]
[1769373306031,11.81871354,2790.6,2789.2,0.89629981]
[1769373306378,11.81871354,2790.6,2788.5,0.07885587]
[1769373306379,11.81871354,2790.6,2789.0,0.89637548]
[1769373306533,11.81871354,2790.6,2789.0,0.89635804]
[1769373306856,11.81871354,2790.6,2788.8,3.58576606]
[1769373306857,10.77436877,2790.5,2788.8,3.58576606]
[1769373307058,10.77436877,2790.5,2789.0,0.89635938]
[1769373307255,10.77436877,2790.5,2788.5,0.89653614]
[1769373307256,10.64636877,2790.2,2788.5,0.89653614]
[1769373307480,10.64636877,2789.8,2787.6,10.152]
[1769373307631,10.64636877,2789.6,2787.7,0.97565251]
[1769373307832,10.64636877,2789.6,2788.1,0.07885587]
[1769373308065,1.06463688,2789.5,2787.7,12.02209398]
[1769373308284,1.06463688,2789.5,2788.1,0.07885587]
[1769373308447,10.64636877,2790.1,2788.5,0.07885587]
[1769373308764,1.19467135,2790.4,2788.9,0.07885587]
[1769373308940,1.19467135,2790.4,2789.1,0.07885587]
[1769373309258,10.64636877,2791.1,2789.6,0.07885587]
[1769373309457,10.64636877,2791.1,2789.2,0.03585256]
[1769373309458,10.64636877,2791.1,2789.2,0.07885587]
[1769373309770,0.001,2790.4,2789.3,0.89628222]
[1769373310333,0.001,2790.4,2789.2,0.89630881]
[1769373310770,0.001,2790.4,2789.2,0.89630724]
[1769373310972,0.001,2790.4,2789.2,1.34448059]
[1769373311272,0.001,2790.4,2789.3,0.07885587]
[1769373311470,0.001,2790.4,2789.4,0.89625008]
[1769373312451,0.001,2790.4,2789.3,0.89627674]
[1769373312654,0.001,2790.4,2788.9,0.07885587]
[1769373312967,0.001,2790.4,2789.0,0.89635762]
[1769373313272,0.001,2790.4,2788.4,11.04644147]
[1769373313273,10.64736877,2790.4,2788.4,11.04644147]
[1769373313441,10.64636877,2790.2,2788.6,0.8964796]
[1769373313639,11.54238312,2790.2,2788.3,0.89660366]
[1769373313834,11.54238312,2790.2,2788.5,0.07885587]
[1769373313835,10.64636877,2790.2,2788.5,0.07885587]
[1769373314033,10.64636877,2790.2,2788.3,0.97545953]
[1769373314237,3.56474468,2790.1,2788.4,0.53128742]
[1769373314463,10.64636877,2790.2,2788.5,0.07885587]
[1769373314973,10.64636877,2790.2,2788.4,0.53128742]
[1769373315478,10.64636877,2790.2,2788.5,0.07885587]
[1769373315974,11.25384204,2790.1,2788.5,0.8965091]
[1769373316190,11.25384204,2790.3,2788.7,0.07885587]
[1769373316485,1.1254842,2790.2,2788.9,0.07885587]
[1769373316640,0.001,2790.4,2788.9,0.07885587]
[1769373316842,0.001,2790.4,2789.8,0.07885587]
[1769373317064,0.001,2791.4,2790.2,0.07885587]
[1769373317246,0.001,2791.4,2790.3,0.07885587]
[1769373317449,0.001,2791.4,2790.5,0.07885587]
[1769373317635,11.25384204,2792.4,2790.5,0.07885587]
[1769373317841,11.25384204,2792.4,2790.8,0.89580048]
[1769373318046,11.25384204,2792.4,2790.9,0.45579143]
[1769373318243,5.10540057,2792.7,2790.9,0.45579143]
[1769373318444,5.10540057,2792.7,2791.1,0.07885587]
[1769373318651,12.00484204,2792.9,2790.9,0.5346473]
[1769373318652,12.89997501,2792.9,2791.2,0.07885587]
[1769373318950,11.25384204,2792.7,2790.9,0.45579143]
[1769373319285,11.25384204,2792.7,2790.7,0.89582719]
[1769373319286,1.1381842,2792.6,2790.7,0.89582719]
[1769373319581,0.128,2792.5,2790.7,0.89582719]
[1769373319784,0.128,2792.5,2791.0,0.89573629]
[1769373320350,11.38184204,2792.5,2790.8,0.89579751]
[1769373320552,11.38184204,2792.5,2790.9,0.97461529]
[1769373320781,1.25200262,2792.4,2791.3,0.07885587]
[1769373320983,0.751,2792.9,2791.3,0.07885587]
[1769373321402,12.89997035,2792.9,2790.9,0.97461529]
[1769373321544,0.001,2791.4,2791.1,0.07885587]
[1769373321741,0.001,2791.4,2790.8,0.07885587]
[1769373322160,0.001,2791.4,2791.0,0.07885587]
[1769373322685,0.001,2791.4,2790.8,0.07885587]
[1769373323254,5.10540057,2792.7,2791.0,0.07885587]
[1769373323455,11.86669869,2792.6,2791.0,0.07885587]
[1769373323781,11.25384204,2792.5,2790.8,0.07885587]
[1769373324072,11.25384204,2792.5,2790.9,0.89576839]
[1769373324574,11.25384204,2792.5,2791.0,0.07885587]
[1769373325269,11.25384204,2792.5,2791.2,0.07885587]
[1769373325474,1.18666987,2792.4,2791.2,0.07885587]
[1769373325673,1.18666987,2792.4,2791.0,0.07885587]
[1769373325853,0.61285665,2792.6,2790.8,0.07885587]
[1769373325854,11.86669869,2792.6,2790.8,0.07885587]
[1769373326054,0.128,2792.5,2790.6,0.07885587]
[1769373326274,11.25384204,2792.4,2790.6,0.97470159]
[1769373326582,11.25384204,2792.4,2790.8,0.07885587]
[1769373327782,11.25384204,2792.4,2790.6,0.97470159]
[1769373327959,1.1381842,2792.3,2790.9,0.89576839]
[1769373328162,12.39202624,2792.3,2790.7,1.3516369]
[1769373328364,12.39202624,2792.3,2790.7,0.89581634]
[1769373328682,11.25384204,2791.7,2789.9,10.15]
[1769373328880,5.10540057,2791.8,2789.4,0.07885587]
[1769373328881,11.25384204,2791.3,2789.4,0.07885587]
[1769373329060,11.25384204,2791.3,2790.1,0.89600877]
[1769373329267,1.1253842,2791.2,2789.7,0.89613245]
[1769373329463,1.1253842,2791.2,2789.6,0.07885587]
[1769373329464,1.1253842,2791.2,2790.0,0.89605573]
[1769373329669,12.37922624,2791.2,2789.6,3.66355833]
[1769373329991,13.27490693,2791.2,2789.4,0.89625008]
[1769373330360,12.37922624,2791.2,2789.4,0.89625008]
[1769373330558,1.76331308,2791.1,2789.7,0.07885587]
[1769373330757,1.1253842,2791.2,2790.1,0.07885587]
[1769373330979,11.25384204,2791.6,2789.6,0.07885587]
[1769373331306,11.25384204,2791.4,2789.6,0.07885587]
[1769373331507,11.25384204,2791.4,2789.5,0.53486702]
[1769373331714,11.25384204,2791.4,2789.5,0.45601115]
[1769373332058,11.25384204,2791.4,2789.9,0.07885587]
[1769373332367,5.2539046,2791.8,2790.0,0.07885587]
[1769373333591,16.10138259,2791.9,2790.3,0.002]
[1769373333988,1.1381842,2792.3,2790.5,0.89589679]
[1769373334385,1.1381842,2792.3,2790.6,0.07885587]
[1769373334558,1.78234551,2792.2,2790.6,0.07885587]
[1769373335090,12.72477895,2792.2,2790.4,0.89590575]
[1769373335298,10.94243344,2791.8,2790.4,0.89590575]
[1769373335976,10.94243344,2791.8,2790.3,0.002]
[1769373336171,1.78234551,2792.2,2790.3,0.002]
[1769373336172,11.69243344,2792.7,2791.0,0.07885587]
[1769373336664,10.94243344,2793.2,2791.4,0.07885587]
[1769373336864,10.94243344,2793.2,2791.2,0.07885587]
[1769373337162,10.94243344,2793.2,2791.4,0.07885587]
[1769373337361,10.94243344,2793.7,2792.0,0.07885587]
[1769373337580,10.94243344,2793.7,2791.9,0.07885587]
[1769373337581,1.5789974,2793.6,2791.9,0.07885587]
[1769373338094,13.41635182,2793.6,2791.4,11.83398386]
[1769373338394,13.41633369,2793.6,2791.9,0.8954468]
[1769373338561,13.41633369,2793.6,2791.8,0.89545974]
[1769373338763,13.41633692,2793.6,2791.9,0.89544287]
[1769373338973,12.28406713,2793.5,2791.4,11.91283973]
[1769373339201,12.28406713,2793.5,2791.5,3.58228184]
[1769373339364,12.28406713,2793.5,2791.5,0.89555356]
[1769373339566,12.28406713,2793.5,2791.7,0.895511]
[1769373339873,0.128,2793.1,2791.5,0.8955758]
[1769373340061,1.10704334,2793.0,2791.5,1.34338844]
[1769373340266,1.10704334,2793.0,2791.5,1.42224431]
[1769373340879,1.10704334,2793.0,2791.7,0.07885587]
[1769373341680,1.10704334,2793.0,2791.5,1.42224431]
[1769373341966,1.10704334,2793.0,2791.5,1.34338105]
[1769373342167,11.14264662,2792.9,2790.9,0.07885587]
[1769373342370,11.14264662,2792.9,2790.6,0.82885587]
[1769373342371,10.94243344,2792.7,2790.6,0.82885587]
[1769373342564,10.94243344,2792.5,2790.8,0.89578363]
[1769373343210,10.94243344,2792.5,2790.9,0.89575486]
[1769373343371,10.94243344,2792.5,2790.8,0.89579699]
[1769373343567,12.04947678,2792.4,2790.8,1.42660266]
[1769373343798,12.04947678,2792.4,2791.0,0.89572891]
[1769373344021,12.94476874,2792.4,2790.8,1.42660474]
[1769373344298,12.04947678,2792.4,2790.9,0.07885587]
[1769373344907,12.04947678,2792.4,2790.8,1.42660474]
[1769373345068,1.20494768,2792.3,2790.8,0.89579843]
[1769373345270,12.14738112,2792.3,2791.0,0.002]
[1769373346569,1.20494768,2792.3,2791.1,0.07885587]
[1769373346813,11.83762762,2792.7,2791.0,0.002]
[1769373347375,10.94243344,2792.7,2791.0,0.002]
[1769373347591,11.83762702,2792.7,2791.0,0.002]
[1769373348085,10.94243344,2792.7,2791.0,0.002]
[1769373348280,11.83765155,2792.7,2791.0,0.89773629]
[1769373348479,11.07043344,2792.5,2791.0,0.002]
[1769373348688,10.94243344,2792.4,2791.0,0.002]
[1769373350412,11.83775271,2792.3,2791.0,0.002]
[1769373350971,10.94243344,2792.3,2791.0,0.002]
[1769373352099,1.54182903,2792.6,2791.0,0.002]
[1769373352297,1.24842625,2792.5,2791.0,0.89773629]
[1769373352498,2.14368334,2792.5,2791.0,0.002]
[1769373352877,1.24842625,2792.5,2791.0,0.002]
[1769373354672,2.14369169,2792.5,2791.0,0.002]
[1769373355174,10.94243344,2792.4,2791.0,0.002]
[1769373355402,10.94243344,2791.8,2790.3,0.002]
[1769373355598,10.94243344,2791.4,2790.3,0.002]
[1769373356405,11.83805144,2791.4,2790.3,0.002]
[1769373356792,10.94243344,2791.4,2790.3,0.002]
[1769373356999,1.18380315,2791.3,2790.3,0.002]
[1769373358018,1.18380315,2791.3,2790.3,0.00100196]
[1769373358611,1.18380315,2791.3,2790.0,0.002]
[1769373358612,10.94243344,2791.1,2790.0,2.93e-06]
[1769373359609,4.85129101,2790.8,2789.6,0.002]
[1769373360125,10.94243344,2790.2,2789.1,0.002]
[1769373360296,10.94243344,2790.2,2788.9,0.002]
[1769373360615,10.94243344,2790.2,2788.4,0.07885587]
[1769373360616,10.94243344,2789.7,2788.4,0.89656819]
[1769373360814,8.43526348,2790.3,2788.4,0.89656819]
[1769373360815,4.85129101,2790.3,2788.7,0.07885587]
[1769373360993,4.85129101,2790.3,2788.6,0.07885587]
[1769373361196,4.85129101,2790.3,2788.8,0.07885587]
[1769373361532,4.85129101,2790.3,2789.0,0.07885587]
[1769373362594,4.85129101,2790.3,2788.8,0.07885587]
[1769373362595,10.94243344,2790.1,2788.2,11.83398386]
[1769373362823,10.94243344,2790.1,2788.5,0.07885587]
[1769373362824,1.94664266,2790.0,2788.5,0.07885587]
[1769373363125,4.85129101,2789.6,2788.4,0.89655284]
[1769373363331,4.85129101,2789.6,2788.3,0.07885587]
[1769373363490,4.85129101,2789.6,2788.2,11.83398386]
[1769373363696,4.85129101,2789.1,2787.7,0.002]
[1769373363891,0.4851291,2789.0,2787.8,0.89673843]
[1769373364302,0.4851291,2789.0,2787.8,11.15076809]
[1769373364501,10.87336019,2789.5,2787.9,3.5868915]
[1769373365716,5.60229101,2789.6,2788.0,0.035868]
[1769373365918,5.60229101,2789.6,2787.9,3.5868915]
[1769373366526,5.60229101,2789.6,2787.7,11.15276809]
[1769373366527,10.87336019,2789.5,2787.7,11.15276809]
[1769373366729,0.5602291,2789.5,2787.7,11.15276809]